[Event "Early-Titled-Tuesday-Blitz-January-23-2024"]
[Site "Chess.com"]
[Date "2024.01.23"]
[Round "5"]
[White "JiiHart"]
[Black "LaPiToB"]
[Result "1-0"]
[WhiteElo "2143"]
[BlackElo "2286"]
[TimeControl "180+1"]
[EndTime "8:56:06 PST"]
[Termination "JiiHart won by resignation"]

1. e4 {[%clk 0:02:59.6]} 1... c6 {[%clk 0:02:58.3]} 2. d4 {[%clk 0:02:58.6]}
2... d5 {[%clk 0:02:58.5]} 3. Nc3 {[%clk 0:02:58]} 3... dxe4 {[%clk 0:02:56.6]}
4. Nxe4 {[%clk 0:02:58.9]} 4... Nf6 {[%clk 0:02:56.4]} 5. Nxf6+ {[%clk
0:02:58.7]} 5... exf6 {[%clk 0:02:57.3]} 6. Bf4 {[%clk 0:02:58.6]} 6... Be7
{[%clk 0:02:55]} 7. c3 {[%clk 0:02:53.4]} 7... O-O {[%clk 0:02:54.9]} 8. Bd3
{[%clk 0:02:53.4]} 8... Re8 {[%clk 0:02:55.1]} 9. Ne2 {[%clk 0:02:53.3]} 9...
Nd7 {[%clk 0:02:54.8]} 10. Qc2 {[%clk 0:02:50.6]} 10... Nf8 {[%clk 0:02:54.6]}
11. h4 {[%clk 0:02:50.3]} 11... Bg4 {[%clk 0:02:45.7]} 12. h5 {[%clk 0:02:45.1]}
12... Bd6 {[%clk 0:02:42.6]} 13. Be3 {[%clk 0:02:21.9]} 13... b5 {[%clk
0:02:21.1]} 14. O-O-O {[%clk 0:02:14.6]} 14... a5 {[%clk 0:02:05.6]} 15. Rde1
{[%clk 0:01:57.4]} 15... a4 {[%clk 0:02:02.5]} 16. Ng3 {[%clk 0:01:30.9]} 16...
a3 {[%clk 0:01:49.9]} 17. b3 {[%clk 0:01:30.4]} 17... Qc7 {[%clk 0:01:30.1]} 18.
Nf5 {[%clk 0:01:22.4]} 18... Bxf5 {[%clk 0:01:17.1]} 19. Bxf5 {[%clk 0:01:19]}
19... Bf4 {[%clk 0:01:07.2]} 20. Qd2 {[%clk 0:00:47.3]} 20... Bxe3 {[%clk
0:00:57.5]} 21. Rxe3 {[%clk 0:00:47.4]} 21... Rad8 {[%clk 0:00:49.2]} 22. Rhe1
{[%clk 0:00:43.5]} 22... Rxe3 {[%clk 0:00:47.6]} 23. Qxe3 {[%clk 0:00:42.5]}
23... Qd6 {[%clk 0:00:45.8]} 24. h6 {[%clk 0:00:35.3]} 24... g6 {[%clk
0:00:44.7]} 25. Bc2 {[%clk 0:00:28.1]} 25... b4 {[%clk 0:00:41.8]} 26. cxb4
{[%clk 0:00:15.7]} 26... Ne6 {[%clk 0:00:39.7]} 27. Rd1 {[%clk 0:00:12.2]} 27...
Qxb4 {[%clk 0:00:37.7]} 28. d5 {[%clk 0:00:09.9]} 28... cxd5 {[%clk 0:00:36.6]}
29. Qf3 {[%clk 0:00:04.7]} 29... Qf4+ {[%clk 0:00:23.1]} 30. Qxf4 {[%clk
0:00:04.6]} 30... Nxf4 {[%clk 0:00:23.4]} 31. b4 {[%clk 0:00:04.9]} 31... Kf8
{[%clk 0:00:18.9]} 32. Bb3 {[%clk 0:00:05.1]} 32... d4 {[%clk 0:00:14.7]} 33. g3
{[%clk 0:00:05.3]} 33... Ne2+ {[%clk 0:00:13.1]} 34. Kd2 {[%clk 0:00:05.7]}
34... Nc3 {[%clk 0:00:13.1]} 35. Rc1 {[%clk 0:00:05.2]} 35... Nd5 {[%clk
0:00:11.7]} 36. Rc4 {[%clk 0:00:04.8]} 36... Nc3 {[%clk 0:00:06.7]} 37. Kd3
{[%clk 0:00:03.8]} 37... Ke7 {[%clk 0:00:04.7]} 38. Rxd4 {[%clk 0:00:03.9]}
38... Rxd4+ {[%clk 0:00:02.7]} 39. Kxd4 {[%clk 0:00:04.8]} 39... Ne2+ {[%clk
0:00:02.7]} 40. Kc5 {[%clk 0:00:04.8]} 40... Ng1 {[%clk 0:00:01.5]} 41. b5
{[%clk 0:00:05.2]} 41... Nh3 {[%clk 0:00:02.3]} 42. b6 {[%clk 0:00:05.5]} 42...
Kd8 {[%clk 0:00:02.4]} 43. Kc6 {[%clk 0:00:05.1]} 43... Kc8 {[%clk 0:00:02.7]}
44. Bxf7 {[%clk 0:00:05.3]} 44... Kb8 {[%clk 0:00:03.6]} 45. Bg8 {[%clk
0:00:05.8]} 45... Nxf2 {[%clk 0:00:03.6]} 46. Bxh7 {[%clk 0:00:06.1]} 46... Ng4
{[%clk 0:00:03.8]} 47. Bxg6 {[%clk 0:00:05.4]} 47... Nxh6 {[%clk 0:00:04.7]} 48.
Be4 {[%clk 0:00:04.1]} 48... f5 {[%clk 0:00:04.4]} 49. Bf3 {[%clk 0:00:03.5]}
49... Nf7 {[%clk 0:00:04.4]} 50. b7 {[%clk 0:00:03.7]} 50... Ne5+ {[%clk
0:00:04.8]} 51. Kd5 {[%clk 0:00:03.5]} 51... Nxf3 {[%clk 0:00:05.7]} 52. Ke6
{[%clk 0:00:03.1]} 52... Ne1 {[%clk 0:00:06.6]} 53. Kxf5 {[%clk 0:00:03.3]}
53... Nd3 {[%clk 0:00:07.5]} 54. g4 {[%clk 0:00:03.8]} 54... Nc1 {[%clk
0:00:08.4]} 55. g5 {[%clk 0:00:04.2]} 55... Nxa2 {[%clk 0:00:09.3]} 56. g6
{[%clk 0:00:04.5]} 56... Nc3 {[%clk 0:00:10.2]} 57. g7 {[%clk 0:00:05]} 57...
Nd5 {[%clk 0:00:11.1]} 58. g8=Q+ {[%clk 0:00:05.3]} 58... Kxb7 {[%clk
0:00:11.7]} 59. Qxd5+ {[%clk 0:00:05.7]} 59... Kb6 {[%clk 0:00:10.6]} 60. Qa2
{[%clk 0:00:06.3]} 1-0

[Event "Early-Titled-Tuesday-Blitz-January-23-2024"]
[Site "Chess.com"]
[Date "2024.01.23"]
[Round "5"]
[White "K_A_S_T_O_R"]
[Black "sergoy"]
[Result "0-1"]
[WhiteElo "2884"]
[BlackElo "3023"]
[TimeControl "180+1"]
[EndTime "8:56:08 PST"]
[Termination "sergoy won by resignation"]

1. e4 {[%clk 0:03:00.9]} 1... c5 {[%clk 0:03:00.2]} 2. Nf3 {[%clk 0:03:00.4]}
2... d6 {[%clk 0:03:00.6]} 3. d4 {[%clk 0:03:00.3]} 3... cxd4 {[%clk 0:03:01.5]}
4. Nxd4 {[%clk 0:03:00.9]} 4... Nf6 {[%clk 0:03:02.2]} 5. Nc3 {[%clk 0:03:01.1]}
5... a6 {[%clk 0:03:02.8]} 6. Bg5 {[%clk 0:03:00.8]} 6... Nbd7 {[%clk
0:03:02.9]} 7. Bc4 {[%clk 0:03:00.3]} 7... Qb6 {[%clk 0:03:01.4]} 8. Bb3 {[%clk
0:03:00.2]} 8... e6 {[%clk 0:02:59.9]} 9. Bxf6 {[%clk 0:03:00.3]} 9... Nxf6
{[%clk 0:02:59.8]} 10. Qd2 {[%clk 0:03:00.8]} 10... Be7 {[%clk 0:02:54.3]} 11.
O-O-O {[%clk 0:03:00.5]} 11... O-O {[%clk 0:02:46.6]} 12. f4 {[%clk 0:03:00]}
12... Qc7 {[%clk 0:02:39.6]} 13. g4 {[%clk 0:02:57.6]} 13... b5 {[%clk
0:02:30.5]} 14. a3 {[%clk 0:02:48.4]} 14... Bb7 {[%clk 0:02:07]} 15. Rhe1 {[%clk
0:02:47.5]} 15... Nd7 {[%clk 0:01:56.5]} 16. f5 {[%clk 0:02:30.4]} 16... e5
{[%clk 0:01:56.6]} 17. Nf3 {[%clk 0:02:28.2]} 17... b4 {[%clk 0:01:57]} 18. axb4
{[%clk 0:02:26.3]} 18... a5 {[%clk 0:01:57.3]} 19. b5 {[%clk 0:02:22.4]} 19...
Nc5 {[%clk 0:01:56.5]} 20. Bd5 {[%clk 0:02:22.2]} 20... a4 {[%clk 0:01:53.8]}
21. Bxb7 {[%clk 0:02:15.2]} 21... Qxb7 {[%clk 0:01:54.1]} 22. Qd5 {[%clk
0:02:15.7]} 22... Qa7 {[%clk 0:01:46.6]} 23. Kd2 {[%clk 0:02:11.5]} 23... Rfc8
{[%clk 0:01:41.7]} 24. Ke2 {[%clk 0:02:10.1]} 24... Nd7 {[%clk 0:01:42]} 25. g5
{[%clk 0:02:06.4]} 25... a3 {[%clk 0:01:36.1]} 26. Ra1 {[%clk 0:02:00.6]} 26...
Qb8 {[%clk 0:01:30.3]} 27. Reb1 {[%clk 0:01:54.9]} 27... Nb6 {[%clk 0:01:30.3]}
28. Qd3 {[%clk 0:01:42.3]} 28... Qc7 {[%clk 0:01:27.7]} 29. Kd1 {[%clk 0:01:27]}
29... Qc5 {[%clk 0:01:21.7]} 30. Ke2 {[%clk 0:01:20.2]} 30... d5 {[%clk
0:01:16.1]} 31. exd5 {[%clk 0:01:17.6]} 31... Rd8 {[%clk 0:00:34.9]} 32. Ne4
{[%clk 0:00:53.8]} 32... Qc7 {[%clk 0:00:35.1]} 33. c4 {[%clk 0:00:48.4]} 33...
Nxc4 {[%clk 0:00:35.4]} 34. bxa3 {[%clk 0:00:45.6]} 34... Nxa3 {[%clk
0:00:35.7]} 35. Rd1 {[%clk 0:00:39.8]} 35... Bb4 {[%clk 0:00:28.6]} 36. g6
{[%clk 0:00:28.7]} 36... hxg6 {[%clk 0:00:26]} 37. fxg6 {[%clk 0:00:28.8]} 37...
Rf8 {[%clk 0:00:10.9]} 38. d6 {[%clk 0:00:28]} 38... Qd7 {[%clk 0:00:09.9]} 39.
Nxe5 {[%clk 0:00:26.2]} 39... Qe6 {[%clk 0:00:09.2]} 40. gxf7+ {[%clk
0:00:26.6]} 40... Kh8 {[%clk 0:00:09.7]} 41. Qg3 {[%clk 0:00:24.4]} 41... Rxf7
{[%clk 0:00:05.8]} 42. Nxf7+ {[%clk 0:00:19.6]} 42... Qxf7 {[%clk 0:00:06.7]}
43. Qh3+ {[%clk 0:00:18.6]} 43... Kg8 {[%clk 0:00:07]} 44. Rf1 {[%clk 0:00:16]}
44... Qc4+ {[%clk 0:00:06.7]} 45. Qd3 {[%clk 0:00:16.5]} 45... Qe6 {[%clk
0:00:07.4]} 46. d7 {[%clk 0:00:15.1]} 46... Rd8 {[%clk 0:00:07.5]} 47. Rad1
{[%clk 0:00:14]} 47... Nxb5 {[%clk 0:00:08]} 48. Qd5 {[%clk 0:00:13.4]} 48...
Nc3+ {[%clk 0:00:08.5]} 49. Kf3 {[%clk 0:00:10.4]} 49... Nxd5 {[%clk 0:00:08.9]}
50. Rd4 {[%clk 0:00:09.9]} 50... Rxd7 {[%clk 0:00:07.8]} 51. Rfd1 {[%clk
0:00:10]} 51... Rf7+ {[%clk 0:00:07.9]} 52. Kg3 {[%clk 0:00:10.4]} 52... Bd6+
{[%clk 0:00:07.5]} 53. Kg2 {[%clk 0:00:10.3]} 53... Ne3+ {[%clk 0:00:07.8]} 54.
Kh1 {[%clk 0:00:10.7]} 54... Nxd1 {[%clk 0:00:07.9]} 0-1

[Event "Early-Titled-Tuesday-Blitz-January-23-2024"]
[Site "Chess.com"]
[Date "2024.01.23"]
[Round "5"]
[White "tolimachess"]
[Black "DrCeltic"]
[Result "0-1"]
[WhiteElo "2479"]
[BlackElo "2622"]
[TimeControl "180+1"]
[EndTime "8:56:11 PST"]
[Termination "DrCeltic won by checkmate"]

1. e4 {[%clk 0:02:55.5]} 1... c5 {[%clk 0:02:59.3]} 2. Nf3 {[%clk 0:02:53.8]}
2... e6 {[%clk 0:02:59.5]} 3. d4 {[%clk 0:02:48.8]} 3... cxd4 {[%clk 0:03:00.4]}
4. Nxd4 {[%clk 0:02:49.3]} 4... Nf6 {[%clk 0:03:01]} 5. Bd3 {[%clk 0:02:42.2]}
5... Nc6 {[%clk 0:03:01.1]} 6. Be3 {[%clk 0:02:34.3]} 6... d5 {[%clk 0:02:55.5]}
7. exd5 {[%clk 0:02:27.2]} 7... Nxd5 {[%clk 0:02:54.6]} 8. Nxc6 {[%clk
0:02:16.2]} 8... bxc6 {[%clk 0:02:28.2]} 9. Bd4 {[%clk 0:02:05.6]} 9... Ba6
{[%clk 0:01:58.8]} 10. O-O {[%clk 0:01:38.8]} 10... Bxd3 {[%clk 0:01:58.2]} 11.
Qxd3 {[%clk 0:01:39.7]} 11... Qg5 {[%clk 0:01:49]} 12. c4 {[%clk 0:01:26.8]}
12... Nf4 {[%clk 0:01:38.1]} 13. Qf3 {[%clk 0:01:25.5]} 13... Rc8 {[%clk
0:01:26.2]} 14. Nc3 {[%clk 0:01:16.9]} 14... Be7 {[%clk 0:00:59.6]} 15. Ne4
{[%clk 0:00:53.7]} 15... Qf5 {[%clk 0:00:49]} 16. Rfe1 {[%clk 0:00:21.7]} 16...
O-O {[%clk 0:00:43.8]} 17. Kh1 {[%clk 0:00:14.5]} 17... Bb4 {[%clk 0:00:32.5]}
18. Ng3 {[%clk 0:00:14.2]} 18... Qg5 {[%clk 0:00:26.4]} 19. Re5 {[%clk
0:00:14.1]} 19... f5 {[%clk 0:00:12]} 20. Be3 {[%clk 0:00:12.8]} 20... Qf6
{[%clk 0:00:06.8]} 21. Bxf4 {[%clk 0:00:12.6]} 21... g5 {[%clk 0:00:07.1]} 22.
Nh5 {[%clk 0:00:11.3]} 22... Qg6 {[%clk 0:00:07.7]} 23. Qg3 {[%clk 0:00:08.8]}
23... gxf4 {[%clk 0:00:06.6]} 24. Qxg6+ {[%clk 0:00:08.4]} 24... hxg6 {[%clk
0:00:07.5]} 25. Nxf4 {[%clk 0:00:09.3]} 25... Kf7 {[%clk 0:00:07.8]} 26. Nxe6
{[%clk 0:00:06.4]} 26... Kf6 {[%clk 0:00:07.5]} 27. Rae1 {[%clk 0:00:05.7]}
27... Bxe1 {[%clk 0:00:07.3]} 28. Nxf8 {[%clk 0:00:06.1]} 28... Kxe5 {[%clk
0:00:07]} 29. Nxg6+ {[%clk 0:00:06.7]} 29... Kf6 {[%clk 0:00:07.1]} 30. Nf4
{[%clk 0:00:07.3]} 30... Bxf2 {[%clk 0:00:06.9]} 31. Nd3 {[%clk 0:00:07.9]}
31... Bd4 {[%clk 0:00:07]} 32. g3 {[%clk 0:00:08.5]} 32... Re8 {[%clk
0:00:06.8]} 33. Kg2 {[%clk 0:00:09.2]} 33... Re2+ {[%clk 0:00:07]} 34. Kh3
{[%clk 0:00:09.8]} 34... Rd2 {[%clk 0:00:07.9]} 35. Nf4 {[%clk 0:00:09.9]} 35...
Bg1 {[%clk 0:00:08]} 36. Ng2 {[%clk 0:00:06.8]} 36... Rxb2 {[%clk 0:00:07.7]}
37. a4 {[%clk 0:00:06.4]} 37... Ra2 {[%clk 0:00:07.6]} 38. a5 {[%clk 0:00:06.2]}
38... Rxa5 {[%clk 0:00:07.4]} 39. g4 {[%clk 0:00:06.6]} 39... fxg4+ {[%clk
0:00:07.3]} 40. Kxg4 {[%clk 0:00:07.5]} 40... Ra4 {[%clk 0:00:07.9]} 41. Kf3
{[%clk 0:00:06]} 41... Rxc4 {[%clk 0:00:08.3]} 42. Ne1 {[%clk 0:00:06.6]} 42...
Rc1 {[%clk 0:00:08.2]} 43. Nd3 {[%clk 0:00:06.7]} 43... Ra1 {[%clk 0:00:08.8]}
44. Ke4 {[%clk 0:00:07.4]} 44... Ra4+ {[%clk 0:00:09]} 45. Kf3 {[%clk
0:00:07.3]} 45... Ra3 {[%clk 0:00:09.7]} 46. Ke4 {[%clk 0:00:07.6]} 46... Rxd3
{[%clk 0:00:10.2]} 47. Kxd3 {[%clk 0:00:08.5]} 47... Bxh2 {[%clk 0:00:10.6]} 48.
Kc4 {[%clk 0:00:09.4]} 48... Bg1 {[%clk 0:00:10.7]} 49. Kb4 {[%clk 0:00:10]}
49... Ke6 {[%clk 0:00:11.3]} 50. Kc4 {[%clk 0:00:10.9]} 50... Kd6 {[%clk
0:00:11.8]} 51. Kb4 {[%clk 0:00:11.3]} 51... c5+ {[%clk 0:00:12.7]} 52. Kc4
{[%clk 0:00:12.1]} 52... Kc6 {[%clk 0:00:13.2]} 53. Kc3 {[%clk 0:00:13]} 53...
Kb5 {[%clk 0:00:13.8]} 54. Kb3 {[%clk 0:00:13.9]} 54... c4+ {[%clk 0:00:14.4]}
55. Kc3 {[%clk 0:00:14.8]} 55... Kc5 {[%clk 0:00:15.1]} 56. Kc2 {[%clk
0:00:15.7]} 56... Kd4 {[%clk 0:00:15.7]} 57. Kb2 {[%clk 0:00:16.2]} 57... c3+
{[%clk 0:00:15.8]} 58. Kc2 {[%clk 0:00:16.7]} 58... Kc4 {[%clk 0:00:16.4]} 59.
Kc1 {[%clk 0:00:17.6]} 59... Kd3 {[%clk 0:00:16.9]} 60. Kd1 {[%clk 0:00:18]}
60... c2+ {[%clk 0:00:17.3]} 61. Kc1 {[%clk 0:00:18.3]} 61... Be3+ {[%clk
0:00:17.5]} 62. Kb2 {[%clk 0:00:18.9]} 62... c1=Q+ {[%clk 0:00:18.1]} 63. Kb3
{[%clk 0:00:19.8]} 63... Qb1+ {[%clk 0:00:17.9]} 64. Ka4 {[%clk 0:00:20.7]}
64... Qb6 {[%clk 0:00:17]} 65. Ka3 {[%clk 0:00:21.1]} 65... Qb5 {[%clk
0:00:16.9]} 66. Ka2 {[%clk 0:00:20.7]} 66... Kc2 {[%clk 0:00:16.4]} 67. Ka3
{[%clk 0:00:21.6]} 67... Qb3# {[%clk 0:00:16.6]} 0-1

[Event "Early-Titled-Tuesday-Blitz-January-23-2024"]
[Site "Chess.com"]
[Date "2024.01.23"]
[Round "5"]
[White "Doomfist26"]
[Black "crazy_m_attack"]
[Result "1-0"]
[WhiteElo "2609"]
[BlackElo "2465"]
[TimeControl "180+1"]
[EndTime "8:56:11 PST"]
[Termination "Doomfist26 won by resignation"]

1. d4 {[%clk 0:03:00.9]} 1... d5 {[%clk 0:02:59.8]} 2. c4 {[%clk 0:03:00.6]}
2... e6 {[%clk 0:02:59.4]} 3. Nf3 {[%clk 0:02:58.4]} 3... Nf6 {[%clk 0:02:59.4]}
4. g3 {[%clk 0:02:59.3]} 4... Be7 {[%clk 0:02:59.4]} 5. Bg2 {[%clk 0:03:00.2]}
5... O-O {[%clk 0:03:00.1]} 6. O-O {[%clk 0:03:00.2]} 6... dxc4 {[%clk 0:03:01]}
7. Qc2 {[%clk 0:03:00.6]} 7... a6 {[%clk 0:03:01.5]} 8. a4 {[%clk 0:02:59.4]}
8... Bd7 {[%clk 0:03:01.7]} 9. Rd1 {[%clk 0:02:58.8]} 9... Bc6 {[%clk
0:02:54.6]} 10. Nc3 {[%clk 0:02:57.9]} 10... Bxf3 {[%clk 0:02:54]} 11. Bxf3
{[%clk 0:02:58.8]} 11... Nc6 {[%clk 0:02:54.6]} 12. Bxc6 {[%clk 0:02:59.4]}
12... bxc6 {[%clk 0:02:55.5]} 13. a5 {[%clk 0:02:51.7]} 13... Rb8 {[%clk
0:02:55.3]} 14. Ra4 {[%clk 0:02:47.6]} 14... Rb4 {[%clk 0:02:55.1]} 15. Na2
{[%clk 0:02:48.2]} 15... Rxa4 {[%clk 0:02:52]} 16. Qxa4 {[%clk 0:02:49.1]} 16...
Qd5 {[%clk 0:02:43.7]} 17. Nc3 {[%clk 0:02:43.4]} 17... Qh5 {[%clk 0:02:43.6]}
18. Qxc6 {[%clk 0:02:40.9]} 18... Ng4 {[%clk 0:02:29.6]} 19. h4 {[%clk
0:02:22.4]} 19... Qxa5 {[%clk 0:02:27]} 20. Qxc4 {[%clk 0:02:08.9]} 20... Nf6
{[%clk 0:02:07.5]} 21. Bg5 {[%clk 0:02:03.5]} 21... Rd8 {[%clk 0:02:04.5]} 22.
Bxf6 {[%clk 0:02:02.9]} 22... Bxf6 {[%clk 0:02:04.7]} 23. e3 {[%clk 0:02:03.8]}
23... Qb6 {[%clk 0:01:47]} 24. Rd2 {[%clk 0:02:01.5]} 24... h5 {[%clk
0:01:26.5]} 25. Ne4 {[%clk 0:01:58.9]} 25... Be7 {[%clk 0:01:26]} 26. Rc2 {[%clk
0:01:57.8]} 26... Rd7 {[%clk 0:01:17]} 27. Qc6 {[%clk 0:01:53.8]} 27... Qxc6
{[%clk 0:01:04.6]} 28. Rxc6 {[%clk 0:01:54.7]} 28... a5 {[%clk 0:01:05.2]} 29.
Kf1 {[%clk 0:01:53.2]} 29... Bb4 {[%clk 0:01:01.3]} 30. Ke2 {[%clk 0:01:53]}
30... Kf8 {[%clk 0:00:56.4]} 31. Ng5 {[%clk 0:01:52.8]} 31... Ke7 {[%clk
0:00:53.2]} 32. Nf3 {[%clk 0:01:52.1]} 32... f6 {[%clk 0:00:52.4]} 33. Kd3
{[%clk 0:01:51.6]} 33... e5 {[%clk 0:00:45.5]} 34. Ke4 {[%clk 0:01:48.8]} 34...
exd4 {[%clk 0:00:44.5]} 35. Nxd4 {[%clk 0:01:49.7]} 35... Kd8 {[%clk 0:00:41.9]}
36. Ra6 {[%clk 0:01:46.6]} 36... Kc8 {[%clk 0:00:41]} 37. Ra8+ {[%clk 0:01:42]}
37... Kb7 {[%clk 0:00:40.8]} 38. Rg8 {[%clk 0:01:42.9]} 38... c5 {[%clk
0:00:37]} 39. Ne6 {[%clk 0:01:39.2]} 39... Rd2 {[%clk 0:00:36.7]} 40. Rxg7+
{[%clk 0:01:39]} 40... Kb6 {[%clk 0:00:37.1]} 41. g4 {[%clk 0:01:37.5]} 41...
hxg4 {[%clk 0:00:35]} 42. b3 {[%clk 0:01:26.5]} 42... c4 {[%clk 0:00:28.2]} 43.
bxc4 {[%clk 0:01:25.5]} 43... a4 {[%clk 0:00:28.6]} 44. Rg8 {[%clk 0:01:15.4]}
44... Ka7 {[%clk 0:00:11.9]} 45. Nd4 {[%clk 0:01:11.1]} 45... Bc5 {[%clk
0:00:06.3]} 46. Nb5+ {[%clk 0:01:09.7]} 46... Kb6 {[%clk 0:00:06.9]} 47. Rb8+
{[%clk 0:01:08.1]} 47... Ka5 {[%clk 0:00:07]} 48. Nc3 {[%clk 0:01:01.7]} 48...
Bb6 {[%clk 0:00:02.7]} 49. Ra8+ {[%clk 0:00:59.9]} 49... Kb4 {[%clk 0:00:02.5]}
50. Nd5+ {[%clk 0:01:00.8]} 50... Kb3 {[%clk 0:00:02]} 51. Nxb6 {[%clk
0:00:54.1]} 51... a3 {[%clk 0:00:02.3]} 52. h5 {[%clk 0:00:55]} 52... Rxf2
{[%clk 0:00:01.6]} 53. h6 {[%clk 0:00:55.5]} 53... g3 {[%clk 0:00:01.6]} 54. h7
{[%clk 0:00:49.8]} 54... g2 {[%clk 0:00:01.8]} 55. Rg8 {[%clk 0:00:50.5]} 55...
g1=Q {[%clk 0:00:02.4]} 56. Rxg1 {[%clk 0:00:50]} 56... Rh2 {[%clk 0:00:03.3]}
57. c5 {[%clk 0:00:47.7]} 57... Rxh7 {[%clk 0:00:02.4]} 58. c6 {[%clk
0:00:48.2]} 58... a2 {[%clk 0:00:02.2]} 59. Kd5 {[%clk 0:00:47.9]} 59... Kb2
{[%clk 0:00:02.4]} 60. Nc4+ {[%clk 0:00:48]} 60... Kb3 {[%clk 0:00:02.2]} 61.
Nd6 {[%clk 0:00:44.6]} 61... Re7 {[%clk 0:00:02]} 62. e4 {[%clk 0:00:44.4]}
62... Re5+ {[%clk 0:00:01.8]} 63. Kd4 {[%clk 0:00:44.2]} 63... Re7 {[%clk
0:00:02]} 64. Kc5 {[%clk 0:00:43.8]} 64... Kb2 {[%clk 0:00:01.1]} 65. Kb6 {[%clk
0:00:43.5]} 65... a1=Q {[%clk 0:00:01.6]} 66. Rxa1 {[%clk 0:00:38.8]} 66... Kxa1
{[%clk 0:00:02.5]} 67. c7 {[%clk 0:00:39.5]} 67... Rxc7 {[%clk 0:00:02.8]} 68.
Kxc7 {[%clk 0:00:40.4]} 68... Kb2 {[%clk 0:00:02.9]} 69. Kd7 {[%clk 0:00:41.1]}
69... Kc3 {[%clk 0:00:03.8]} 70. Ke6 {[%clk 0:00:41.8]} 70... Kd4 {[%clk
0:00:04.7]} 71. Kxf6 {[%clk 0:00:41.8]} 1-0

[Event "Early-Titled-Tuesday-Blitz-January-23-2024"]
[Site "Chess.com"]
[Date "2024.01.23"]
[Round "5"]
[White "LiadCuba"]
[Black "koncheto"]
[Result "0-1"]
[WhiteElo "2447"]
[BlackElo "2574"]
[TimeControl "180+1"]
[EndTime "8:56:11 PST"]
[Termination "koncheto won by checkmate"]

1. d4 {[%clk 0:03:00.9]} 1... Nf6 {[%clk 0:02:58.8]} 2. c4 {[%clk 0:03:00.8]}
2... e6 {[%clk 0:02:58.3]} 3. Nc3 {[%clk 0:03:00.9]} 3... c5 {[%clk 0:02:59.2]}
4. d5 {[%clk 0:03:00.6]} 4... exd5 {[%clk 0:02:56]} 5. cxd5 {[%clk 0:03:01.5]}
5... d6 {[%clk 0:02:56.9]} 6. e4 {[%clk 0:03:01]} 6... g6 {[%clk 0:02:53.7]} 7.
f4 {[%clk 0:03:01.1]} 7... Bg7 {[%clk 0:02:48.6]} 8. e5 {[%clk 0:03:00.4]} 8...
dxe5 {[%clk 0:02:34.7]} 9. fxe5 {[%clk 0:03:01.3]} 9... Nfd7 {[%clk 0:02:25.5]}
10. e6 {[%clk 0:03:00]} 10... fxe6 {[%clk 0:02:25.2]} 11. dxe6 {[%clk
0:03:00.9]} 11... Qe7 {[%clk 0:02:25.6]} 12. Nf3 {[%clk 0:02:25.3]} 12... Qxe6+
{[%clk 0:02:21.4]} 13. Be2 {[%clk 0:02:25.4]} 13... O-O {[%clk 0:02:22]} 14. O-O
{[%clk 0:02:25.9]} 14... Nc6 {[%clk 0:02:15.4]} 15. Ng5 {[%clk 0:02:24.5]} 15...
Bd4+ {[%clk 0:02:07.3]} 16. Kh1 {[%clk 0:02:24.1]} 16... Rxf1+ {[%clk 0:02:05]}
17. Qxf1 {[%clk 0:02:23.2]} 17... Qf6 {[%clk 0:01:45.6]} 18. Bc4+ {[%clk
0:02:17.4]} 18... Kg7 {[%clk 0:01:46.1]} 19. Qe2 {[%clk 0:01:56.7]} 19... Nde5
{[%clk 0:01:42.3]} 20. Nce4 {[%clk 0:01:52.8]} 20... Bg4 {[%clk 0:01:30.7]} 21.
Nxf6 {[%clk 0:01:31.7]} 21... Bxe2 {[%clk 0:01:30.5]} 22. Bxe2 {[%clk
0:01:32.6]} 22... Kxf6 {[%clk 0:01:29.4]} 23. Ne4+ {[%clk 0:01:33.5]} 23... Kg7
{[%clk 0:01:27.2]} 24. Bg5 {[%clk 0:01:33.8]} 24... Rf8 {[%clk 0:01:22]} 25. Rd1
{[%clk 0:01:29.7]} 25... b6 {[%clk 0:01:12.4]} 26. Bb5 {[%clk 0:01:18.6]} 26...
h6 {[%clk 0:01:04.5]} 27. Bc1 {[%clk 0:01:08.9]} 27... Ne7 {[%clk 0:00:45.9]}
28. h3 {[%clk 0:01:08.1]} 28... Nd5 {[%clk 0:00:33.6]} 29. a3 {[%clk 0:01:03.8]}
29... a5 {[%clk 0:00:30.2]} 30. Kh2 {[%clk 0:00:45.2]} 30... Nf4 {[%clk
0:00:18.6]} 31. b4 {[%clk 0:00:40.2]} 31... axb4 {[%clk 0:00:19.5]} 32. axb4
{[%clk 0:00:40.4]} 32... Nd5 {[%clk 0:00:18.9]} 33. bxc5 {[%clk 0:00:40.3]}
33... bxc5 {[%clk 0:00:19.6]} 34. Nxc5 {[%clk 0:00:39.5]} 34... Bxc5 {[%clk
0:00:07.2]} 35. Rxd5 {[%clk 0:00:39.7]} 35... Ba7 {[%clk 0:00:06.3]} 36. Rxe5
{[%clk 0:00:38.3]} 36... Bb8 {[%clk 0:00:06.7]} 37. Bb2 {[%clk 0:00:35.5]} 37...
Kf6 {[%clk 0:00:07.1]} 38. g3 {[%clk 0:00:28.7]} 38... Bxe5 {[%clk 0:00:07]} 39.
Ba3 {[%clk 0:00:27.7]} 39... Rb8 {[%clk 0:00:06.3]} 40. Bc4 {[%clk 0:00:26.5]}
40... Rc8 {[%clk 0:00:04.5]} 41. Bd5 {[%clk 0:00:26.4]} 41... Rc2+ {[%clk
0:00:04.5]} 42. Kg1 {[%clk 0:00:25.9]} 42... Bxg3 {[%clk 0:00:03.6]} 43. Be4
{[%clk 0:00:24.2]} 43... Ra2 {[%clk 0:00:03.3]} 44. Bc5 {[%clk 0:00:21.5]} 44...
Be5 {[%clk 0:00:03.3]} 45. h4 {[%clk 0:00:20.7]} 45... Ra4 {[%clk 0:00:03.6]}
46. Bf3 {[%clk 0:00:16.4]} 46... Rxh4 {[%clk 0:00:04.5]} 47. Kg2 {[%clk
0:00:16.6]} 47... Ra4 {[%clk 0:00:04.7]} 48. Bb6 {[%clk 0:00:16.5]} 48... g5
{[%clk 0:00:05]} 49. Bd8+ {[%clk 0:00:16.8]} 49... Kg6 {[%clk 0:00:05.2]} 50.
Bd1 {[%clk 0:00:16.3]} 50... Ra2+ {[%clk 0:00:04.9]} 51. Kf3 {[%clk 0:00:16.2]}
51... Rd2 {[%clk 0:00:05.6]} 52. Bb3 {[%clk 0:00:10.2]} 52... Rxd8 {[%clk
0:00:05.4]} 53. Ke4 {[%clk 0:00:10.7]} 53... Bg7 {[%clk 0:00:04.8]} 54. Bc2
{[%clk 0:00:11]} 54... Kf6 {[%clk 0:00:04.9]} 55. Ba4 {[%clk 0:00:10.8]} 55...
Rb8 {[%clk 0:00:04.8]} 56. Bc6 {[%clk 0:00:10.9]} 56... Rb4+ {[%clk 0:00:05.7]}
57. Kd3 {[%clk 0:00:11.1]} 57... Ke5 {[%clk 0:00:06.3]} 58. Kc3 {[%clk
0:00:10.7]} 58... Rd4 {[%clk 0:00:07.2]} 59. Bg2 {[%clk 0:00:10.5]} 59... Kf4
{[%clk 0:00:07.6]} 60. Kc2 {[%clk 0:00:10.8]} 60... g4 {[%clk 0:00:06.4]} 61.
Kc3 {[%clk 0:00:10.5]} 61... h5 {[%clk 0:00:07.3]} 62. Kc2 {[%clk 0:00:10.7]}
62... h4 {[%clk 0:00:07.8]} 63. Bc6 {[%clk 0:00:10.8]} 63... Rc4+ {[%clk
0:00:07.4]} 64. Kd3 {[%clk 0:00:11.3]} 64... Rxc6 {[%clk 0:00:08.3]} 65. Ke2
{[%clk 0:00:12]} 65... Kg3 {[%clk 0:00:08]} 66. Kf1 {[%clk 0:00:12.1]} 66... Re6
{[%clk 0:00:08.4]} 67. Kg1 {[%clk 0:00:12.4]} 67... Re1# {[%clk 0:00:09.3]} 0-1